[Event "1000GM Schev-G3 March 2024"]
[Site "Santa Clara"]
[Date "2024.03.11"]
[Round "5.5"]
[White "Suarez, Sebastian"]
[Black "Blandon Villa, Diego F"]
[Result "1-0"]
[ECO "B78"]
[WhiteElo "2113"]
[BlackElo "2274"]
[Annotator "TA"]
[PlyCount "77"]
[EventDate "2024.03.06"]
[EventType "schev"]
[EventCountry "USA"]
[SourceTitle "playchess.com"]
[Source "ChessBase"]
[SourceQuality "1"]
[TimeControl "5400+30"]

{[%evp 24,77,39,35,46,38,52,44,44,38,35,54,37,40,51,40,98,66,89,111,141,68,104,89,106,104,88,97,92,79,125,128,150,143,185,182,230,183,180,175,169,167,234,174,160,145,537,508,852,844,829,819,29991,29992,29995,29996]} 1. e4 {[%emt 0:01:58]} c5 {[%emt 0:00:06]} 2. Nf3 {[%emt 0:00:17]} d6 {[%emt 0:00:04]} 3. d4 {[%emt 0:00:10]} cxd4 {[%emt 0:00:05]} 4. Nxd4 {[%emt 0:00:08]} Nf6 {[%emt 0:00:07]} 5. Nc3 {[%emt 0:00:10]} g6 {[%emt 0:00:20]} 6. Be3 {[%emt 0:00:28]} Bg7 {[%emt 0:00:05]} 7. f3 {[%emt 0:00:30]} Nc6 {[%emt 0:00:12]} 8. Qd2 {[%emt 0:00:16]} O-O {[%emt 0:00:07]} 9. Bc4 {[%emt 0:00:21]} Bd7 {[%emt 0:00:50]} 10. O-O-O {[%emt 0:00:38]} Rc8 {[%emt 0:00:25]} 11. Bb3 {[%emt 0:00:23]} Nxd4 {[%emt 0:01:06]} 12. Bxd4 {[%emt 0:00:16]} b5 {[%emt 0:00:03]} 13. Nd5 {[%emt 0:00:15]} Nxd5 {[%emt 0:01:50]} 14. Bxg7 {[%emt 0:00:18]} Kxg7 {[%emt 0:00:07]} 15. exd5 {[%emt 0:00:08]} a5 {[%emt 0:03:01] [#] aiming for ...a4. White is slightly better.} 16. a3 {[%emt 0:00:48]} Qb6 {[%emt 0:03:06] Strongly threatening ...a4.} 17. Rhe1 {[%emt 0:10:05]} Rfe8 {[%emt 0:00:54]} 18. g4 {[%emt 0:01:54]} Rc7 {[%emt 0:02:12]} 19. Re2 {[%emt 0:02:14]} a4 {[%emt 0:06:00]} (19... Rec8 $14 20. Qf4 (20. Rxe7 $2 a4 $19) 20... Be8) 20. Ba2 $16 {[%emt 0:00:17]} Qc5 {[%emt 0:00:11]} 21. h4 {[%emt 0:07:41]} h6 {[%emt 0:05:03]} 22. Kb1 {[%emt 0:02:55]} (22. Rde1 $16) 22... e5 $14 {[%emt 0:02:39]} 23. dxe6 {[%emt 0:00:28]} Bxe6 {[%emt 0:00:10]} 24. Bxe6 {[%emt 0:02:11]} (24. Qxd6 $2 Bxa2+ 25. Kxa2 Rxe2 $19) 24... Rxe6 {[%emt 0:01:22]} 25. Rxe6 {[%emt 0:01:16]} fxe6 $16 {[%emt 0:00:02][%mdl 4096] Endgame. KQR-KQR} 26. h5 {[%emt 0:00:01] And now hxg6 would win.} gxh5 {[%emt 0:06:55]} ({Black should try} 26... Rf7) 27. gxh5 {[%emt 0:00:13]} (27. Qxd6 Qxd6 (27... Qxc2+ 28. Ka1 $15) 28. Rxd6 h4 29. Rxe6 Rf7 $19) 27... Qxh5 {[%emt 0:01:56]} 28. Qxd6 {[%emt 0:02:23]} Rf7 {[%emt 0:01:12]} 29. Qxe6 {[%emt 0:03:14]} (29. Rg1+ Kh7 $11) 29... Qf5 {[%emt 0:02:03]} (29... Kh7 $142 30. Rd6 Qh1+ 31. Ka2 Qh5) 30. Qd6 {[%emt 0:05:33]} Kh7 {[%emt 0:02:29]} 31. Rg1 {[%emt 0:08:00]} Rg7 {[%emt 0:04:17]} 32. Rh1 {[%emt 0:00:17]} h5 {[%emt 0:02:09]} (32... Rg6 {was necessary.} 33. Qe7+ Rg7) 33. Qc6 {[%emt 0:07:07]} Rg6 {[%emt 0:06:18]} 34. Qe4 {[%emt 0:01:06]} Qg5 {[%emt 0:00:57][%mdl 8192] [#] Loses the game.} (34... Rg5 $16 {is more resistant.}) 35. Rd1 $18 {[%emt 0:07:13]} Kh6 {[%emt 0:10:56]} (35... Qf6 $142 36. Rd5 Kg8 37. Rxb5 (37. Rxh5 Rg1+ 38. Ka2 Rg5 $18) 37... Qf7 38. Rb8+ (38. Rxh5 $2 {leads to mate.} Rg1+) 38... Kg7 39. Qd4+ (39. Qxa4 $2 Rg1#) (39. Qe5+ Qf6 $18) 39... Qf6) 36. Rd5 {[%emt 0:02:23]} Qg1+ {[%emt 0:00:05]} 37. Ka2 {[%emt 0:00:05]} Rg5 {[%emt 0:00:25]} 38. Qf4 {[%emt 0:01:45]} Kg6 {[%emt 0:01:04]} 39. Rd6+ {[%emt 0:00:59] Weighted Error Value: White=0.09 (flawless) /Black=0.67.  Loses game:     	---       	Black=1      Mistake:       	White=1     	Black=5      OK:         	White=10    	Black=6      Best:        	White=6     	---} 1-0